bitfinex/quotes_ETHUSD_20220118
["timestamp","ask_amount","ask_price","bid_price","bid_amount"]
[1642512537799,0.39545525,3120.0,3118.0,0.384]
[1642512537800,6.11489735,3119.7,3118.1,1.15400772]
[1642512537997,6.11489735,3119.7,3118.8,1.11932954]
[1642512537998,5.98669735,3119.7,3118.8,1.11932954]
[1642512538200,5.98669735,3119.7,3118.9,0.384]
[1642512538201,0.00570004,3119.6,3118.9,0.384]
[1642512538646,0.00513162,3119.5,3118.9,0.384]
[1642512538857,4.12213187,3119.5,3118.3,4.3532]
[1642512539146,2.11976619,3118.4,3118.3,4.3532]
[1642512539345,2.11976619,3118.4,3117.9,6.5882]
[1642512539548,3.32068275,3118.3,3117.9,6.5882]
[1642512539746,2.09488375,3118.1,3117.9,6.5882]
[1642512540346,3.3959988,3118.0,3117.9,6.5882]
[1642512540549,3.53680259,3118.0,3117.9,0.0001]
[1642512540749,0.01089622,3117.8,3116.1,2.3809]
[1642512540947,18.6983,3117.7,3116.2,4.3628]
[1642512541147,18.6983,3117.7,3116.2,8.01466319]
[1642512541148,3.57897147,3117.6,3116.2,8.01466319]
[1642512541353,0.1283,3117.5,3116.3,3.6422]
[1642512541547,0.1283,3117.5,3116.6,2.93146657]
[1642512541847,0.1283,3117.9,3116.7,3.64902108]
[1642512542292,2.73365119,3117.4,3116.8,3.64845265]
[1642512542496,18.6983,3117.3,3115.4,0.384]
[1642512542689,18.70114211,3117.3,3115.4,3.24916864]
[1642512542889,0.01207439,3117.1,3115.5,0.00738951]
[1642512543093,0.1283,3117.0,3115.5,0.00738951]
[1642512543294,0.1283,3117.0,3115.2,5.2226]
[1642512543295,0.53717819,3117.0,3115.4,0.00795793]
[1642512543494,2.32239227,3116.9,3115.3,0.00852636]
[1642512543694,0.1283,3116.8,3115.5,46.88526]
[1642512543897,0.1283,3116.8,3115.3,0.00852636]
[1642512543898,1.94418121,3115.7,3115.6,0.05577403]
[1642512544095,0.80264,3116.9,3115.6,0.05577403]
[1642512544096,0.1283,3116.5,3115.7,4.15]
[1642512544295,3.86308803,3117.0,3115.7,4.16208964]
[1642512544495,3.73478803,3117.0,3115.8,8.58533324]
[1642512544692,2.06923906,3117.5,3115.8,0.00568424]
[1642512544905,3.53294364,3118.2,3117.3,0.01260216]
[1642512545096,3.53294364,3118.2,3117.4,0.06313906]
[1642512545097,1.83899997,3117.9,3117.4,0.06313906]
[1642512545295,1.83899997,3117.9,3117.0,0.34622673]
[1642512545496,0.00454739,3117.8,3117.1,0.1283]
[1642512545698,0.00454739,3117.8,3116.3,0.384]
[1642512545699,0.13284739,3117.8,3116.3,0.384]
[1642512545947,0.00397897,3117.7,3116.3,0.384]
[1642512546149,0.1283,3117.6,3116.4,0.00341054]
[1642512546347,0.13171054,3117.6,3116.4,0.00341054]
[1642512546650,2.03383974,3116.9,3116.2,0.00454738]
[1642512548548,2.03383974,3116.9,3116.3,0.05452348]
[1642512548749,0.00667848,3117.0,3116.4,3.10376857]
[1642512548950,0.00667848,3117.0,3116.9,1.42473206]
[1642512549449,0.00667848,3117.0,3116.9,1.80873206]
[1642512549891,0.00667848,3117.0,3116.9,3.73968708]
[1642512550291,0.00667848,3117.0,3116.9,1.80873206]
[1642512550692,0.00387848,3117.0,3116.9,1.80873206]
[1642512550891,0.00107848,3117.0,3116.9,1.93703206]
[1642512551493,0.00284212,3117.5,3117.4,7.39697377]
[1642512551697,4.212e-05,3117.5,3117.4,8.92379175]
[1642512551893,0.26649997,3118.7,3117.4,8.92379175]
[1642512552093,0.13819997,3118.7,3118.3,1.46519657]
[1642512552293,0.00629478,3118.6,3117.9,0.384]
[1642512552495,0.00629478,3118.6,3117.5,0.384]
[1642512552496,0.14739265,3118.6,3117.5,0.384]
[1642512552692,0.00572636,3118.5,3117.5,0.384]
[1642512552893,0.00572636,3118.5,3117.1,0.1282]
[1642512552894,0.14605968,3118.4,3117.1,0.1282]
[1642512553094,23.04095986,3118.4,3117.1,0.1282]
[1642512553294,2.10120398,3118.3,3117.2,0.00166315]
[1642512553546,0.01269197,3117.8,3117.2,0.00166315]
[1642512553742,0.1283,3117.7,3117.2,0.00166315]
[1642512554040,1.73411897,3117.7,3116.8,0.00393684]
[1642512554245,0.93178897,3117.7,3116.8,0.00393684]
[1642512554439,20.88949381,3117.6,3116.8,0.00393684]
[1642512554642,0.1283,3117.5,3116.8,0.00393684]
[1642512555045,0.80234,3117.3,3116.8,0.00393684]
[1642512555244,20.88949381,3117.6,3116.8,0.00393684]
[1642512555245,0.1283,3117.2,3116.8,0.00393684]
[1642512555445,0.1283,3117.5,3116.8,0.00393684]
[1642512555746,0.1283,3117.3,3116.8,0.00393684]
[1642512555945,0.1283,3117.4,3116.8,0.00393684]
[1642512556345,3.57329446,3117.4,3116.8,0.00393684]
[1642512556646,3.57329446,3117.4,3117.0,0.00207722]
[1642512556849,0.1283,3117.4,3117.0,0.00207722]
[1642512557047,0.1283,3117.4,3117.1,0.00223157]
[1642512557314,18.6983,3117.5,3117.1,0.00223157]
[1642512557504,3.29690622,3117.4,3117.1,0.00223157]
[1642512557702,0.16702583,3117.5,3117.1,0.00223157]
[1642512557902,0.1283,3117.5,3117.1,0.00223157]
[1642512558104,3.54457332,3117.5,3117.1,0.00223157]
[1642512558403,0.1283,3117.5,3117.1,0.00223157]
[1642512558804,0.1283,3117.5,3116.2,0.09358452]
[1642512559006,0.00170527,3117.4,3116.2,0.09358452]
[1642512559202,0.1283,3117.3,3116.3,0.00454739]
[1642512559410,0.12943684,3117.3,3116.3,0.00454739]
[1642512559609,2.17688366,3116.7,3116.3,0.00454739]
[1642512560209,2.17688366,3116.7,3115.9,0.00682108]
[1642512560610,1.93139519,3116.1,3115.9,0.00682108]
[1642512561040,2.82799519,3116.1,3115.9,0.00682108]
[1642512561342,2.86774336,3116.1,3115.9,0.00682108]
[1642512561541,0.1283,3116.0,3115.9,0.00682108]
[1642512561739,0.1283,3116.0,3115.4,0.0096632]
[1642512561944,2.95629519,3116.1,3114.6,0.01421059]
[1642512562150,2.1608322,3114.9,3114.7,0.1283]
[1642512562350,2.1608322,3114.9,3114.5,1.32012882]
[1642512562351,2.1608322,3114.9,3114.5,0.14307901]
[1642512562551,2.1608322,3114.9,3114.8,2.81307374]
[1642512562747,2.1608322,3114.9,3114.8,2.8]
[1642512562950,5.5,3114.7,3113.8,0.007]
[1642512563167,0.01246012,3114.5,3112.7,0.04714286]
[1642512563354,0.3197,3113.8,3112.7,0.04714286]
[1642512563549,0.8826,3113.8,3112.7,0.04714286]
[1642512563752,0.8826,3113.8,3112.9,0.07107675]
[1642512563949,0.01230078,3114.9,3112.8,72.83133275]
[1642512564150,0.01230078,3114.9,3113.0,69.22725562]
[1642512564458,0.93114,3115.4,3112.9,6.4381]
[1642512564459,0.1283,3115.6,3114.6,3.49037502]
[1642512564696,0.14072785,3115.8,3114.6,3.49037502]
[1642512564898,1.0,3117.1,3114.6,3.49037502]
[1642512564899,0.5123,3116.5,3114.7,4.5]
[1642512565100,1.0,3117.1,3114.7,9.0638544]
[1642512565101,0.1283,3116.9,3114.7,9.0638544]
[1642512565299,1.01267879,3117.1,3116.3,2.14172012]
[1642512565300,0.00909477,3116.4,3116.3,2.14172012]
[1642512565501,18.57,3116.7,3115.0,0.0123499]
[1642512565802,1.38465137,3116.5,3115.0,0.8146299]
[1642512566000,1.38465137,3116.5,3116.4,3.78545226]
[1642512566602,1.38465137,3116.5,3116.4,2.45]
[1642512567004,5.46730238,3117.1,3116.4,2.45]
[1642512567005,0.13819997,3117.5,3116.4,2.45]
[1642512567200,0.1283,3117.3,3116.4,2.45]
[1642512567401,0.01023162,3116.6,3116.4,2.45]
[1642512567601,0.01023162,3116.6,3116.5,1.19319374]
[1642512567903,0.1283,3117.3,3117.0,1.24158643]
[1642512568104,0.1283,3117.3,3116.2,1.83775314]
[1642512568105,0.08434582,3117.2,3116.2,1.83775314]
[1642512568305,0.0096632,3116.5,3116.2,1.83775314]
[1642512568739,0.00909477,3116.4,3116.2,1.83775314]
[1642512568942,0.00909477,3116.4,3116.2,2.13775314]
[1642512569138,3.59793925,3117.5,3116.3,6.8434653]
[1642512569340,0.13819997,3117.5,3116.3,5.5]
[1642512569548,0.01477901,3117.4,3116.3,5.5]
[1642512569942,0.01421058,3117.3,3116.0,0.384]
[1642512570142,0.11278779,3117.2,3116.0,0.384]
[1642512570343,1.66477218,3116.3,3115.7,1.1622]
[1642512570544,3.34110752,3116.2,3114.8,4.2327]
[1642512570744,0.18525879,3116.2,3114.8,4.2327]
[1642512570943,0.0073895,3116.1,3114.8,1.2293]
[1642512571344,0.00682108,3116.0,3115.6,1.24575874]
[1642512571744,0.00625266,3115.9,3115.6,1.24575874]
[1642512571946,0.00625266,3115.9,3114.8,1.2293]
[1642512572195,0.00568423,3115.8,3114.8,1.2293]
[1642512572591,0.00511581,3115.7,3114.8,1.2293]
[1642512572792,0.00511581,3115.7,3114.9,0.3]
[1642512572992,0.03412668,3116.8,3115.0,1.24768812]
[1642512572993,0.00454739,3115.6,3115.0,1.24768812]
[1642512573193,0.00454739,3115.6,3115.0,3.23972144]
[1642512573393,3.39156845,3116.2,3115.5,5.25]
[1642512573594,0.1283,3116.2,3115.5,5.25]
[1642512573794,0.13625793,3116.2,3115.5,5.25]
[1642512574004,0.01220507,3115.6,3114.6,0.00113685]
[1642512574200,0.9509,3115.4,3114.6,0.00113685]
[1642512574399,3.02438565,3115.2,3114.6,1.37588219]
[1642512574601,3.02438565,3115.2,3113.2,0.00909478]
[1642512574602,3.02438565,3115.2,3113.3,0.384]
[1642512574805,0.9509,3115.0,3113.3,0.384]
[1642512575002,0.9509,3115.0,3113.4,0.00795793]
[1642512575203,0.9509,3115.0,3114.1,0.8024466]
[1642512575403,0.9509,3115.0,3114.2,0.409482]
[1642512575606,0.9509,3115.0,3114.2,0.68741054]
[1642512575801,0.9509,3115.0,3114.3,1.25229052]
[1642512576043,0.9509,3115.0,3114.4,2.34570155]
[1642512576243,0.9509,3115.0,3114.4,2.04797525]
[1642512576449,0.9509,3115.0,3114.9,5.06521915]
[1642512576849,0.95203684,3115.0,3114.9,5.06521915]
[1642512577248,0.1283,3115.8,3115.0,0.952]
[1642512577455,4.10468084,3117.1,3115.0,1.336]
[1642512577456,0.1283,3116.3,3115.0,1.336]
[1642512577647,3.36908453,3116.8,3115.0,1.336]
[1642512577648,0.1283,3116.8,3116.2,1.40919794]
[1642512577848,0.1283,3116.9,3115.1,2.7462]
[1642512578049,0.0096632,3116.7,3115.2,0.384]
[1642512578248,0.0096632,3116.7,3115.1,2.4462]
[1642512578249,0.1283,3116.6,3115.1,2.4462]
[1642512578448,0.80258,3116.3,3114.1,6.9449]
[1642512578649,0.01231138,3116.0,3114.2,2.3948]
[1642512578850,1.95789172,3115.6,3115.2,1.25704689]
[1642512579252,0.00284212,3115.5,3115.2,1.25704689]
[1642512579701,0.0022737,3115.4,3115.2,1.25704689]
[1642512580103,5.27e-06,3115.3,3115.2,1.25704689]
[1642512580296,5.27e-06,3115.3,3115.1,0.684]
[1642512580497,0.13683163,3116.8,3115.1,1.48626]
[1642512580897,0.0079632,3116.7,3115.1,1.48626]
[1642512581301,1.95177743,3116.6,3116.1,1.286088]
[1642512581499,1.95177743,3116.6,3115.3,0.00444476]
[1642512581700,0.00682636,3116.5,3115.3,0.00444476]
[1642512582102,0.00625793,3116.4,3115.3,0.00444476]
[1642512582503,0.00568951,3116.3,3115.3,0.00444476]
[1642512582706,0.00568951,3116.3,3115.8,1.11130596]
[1642512582901,2.07268265,3116.6,3115.8,1.11130596]
[1642512582902,0.00512109,3116.2,3115.8,1.11130596]
[1642512583452,0.00512109,3116.2,3115.1,0.40390802]
[1642512583453,0.00455266,3116.1,3115.1,0.01990802]
[1642512583652,0.01294001,3115.2,3114.2,4.1304]
[1642512583852,0.01294001,3115.2,3114.3,1.2368]
[1642512584152,2.35069398,3115.2,3114.7,1.73301626]
[1642512584450,0.9509,3115.1,3114.8,0.00283684]
[1642512584658,0.04894511,3115.0,3114.8,0.00283684]
[1642512584853,0.05814717,3114.8,3114.6,0.00397369]
[1642512585052,0.9509,3114.9,3114.4,0.00511054]
[1642512585255,0.1283,3114.7,3114.4,0.00511054]
[1642512585453,0.9509,3114.6,3113.7,0.0090895]
[1642512585651,0.9509,3114.6,3113.4,0.01079477]
[1642512585652,0.9509,3113.5,3113.4,0.01079477]
[1642512585854,0.9509,3113.5,3113.3,1.18741985]
[1642512586053,0.9509,3113.5,3113.4,4.51079477]
[1642512586653,2.94214694,3113.5,3113.4,4.51079477]
[1642512586856,2.94214694,3113.5,3113.4,0.01079477]
[1642512587055,2.89214694,3113.5,3113.4,0.01079477]
[1642512587292,2.89214694,3113.5,3112.7,0.04714286]
[1642512587293,2.89214694,3113.5,3112.8,0.01420531]
[1642512587797,1.76711194,3113.0,3112.8,0.01420531]
[1642512587993,0.9009,3112.9,3112.6,3.53789146]
[1642512588495,0.80315,3113.6,3112.7,72.094816]
[1642512588496,0.9009,3112.8,3112.7,72.094816]
[1642512588694,0.9009,3112.8,3112.7,77.094816]
[1642512588894,0.9009,3112.8,3112.5,6.13085448]
[1642512589094,0.03664503,3112.7,3112.5,6.13085448]
[1642512589295,0.9009,3112.4,3111.8,0.00857143]
[1642512589495,0.03375523,3112.3,3111.8,0.00857143]
[1642512589694,0.9009,3112.4,3112.2,0.00341054]
[1642512589899,0.9009,3112.4,3112.2,145.74704554]
[1642512590097,0.9009,3112.4,3112.3,66.796184]
[1642512590303,25.01036253,3112.4,3112.3,82.27953819]
[1642512590501,22.88886253,3112.4,3112.3,48.129526]
[1642512590700,19.5994,3112.4,3112.3,32.000521]
[1642512590947,19.5994,3112.4,3112.3,89.530094]
[1642512591146,19.5994,3112.4,3112.3,88.756094]
[1642512591360,19.5994,3112.4,3112.3,69.95096819]
[1642512591361,0.9009,3112.4,3112.3,69.95096819]
[1642512591649,0.9009,3112.4,3112.3,49.71962819]
[1642512592868,0.00341054,3112.9,3112.5,19.208]
[1642512593064,0.00625266,3113.4,3112.5,19.208]
[1642512593266,3.405499,3113.8,3113.4,1.16162717]
[1642512593267,0.03980944,3113.7,3113.4,1.16162717]
[1642512593564,0.03980944,3113.7,3113.5,2.30843318]
[1642512593565,0.93151,3113.6,3113.5,2.30843318]
[1642512593765,0.00795793,3113.7,3113.5,2.30843318]
[1642512593965,0.00795793,3113.7,3113.5,37.41504618]
[1642512594265,0.00795793,3113.7,3113.5,2.30843318]
[1642512596320,0.00795793,3113.7,3113.6,6.75048025]
[1642512598123,12.30095965,3115.2,3113.7,5.55]
[1642512598324,0.1284,3115.1,3113.9,1.25624149]
[1642512598587,0.01221418,3115.3,3114.4,1.17070296]
[1642512598588,0.00568423,3114.7,3114.4,1.17070296]
[1642512598974,1.38465137,3114.8,3114.4,1.17070296]
[1642512598975,0.00511581,3114.6,3114.4,1.17070296]
[1642512599377,0.00454739,3114.5,3114.4,1.17070296]
[1642512599576,0.00454739,3114.5,3114.4,3.49617943]
[1642512600480,0.00454739,3114.5,3114.1,10.9265]
[1642512600685,2.74199735,3114.5,3114.1,10.9265]
[1642512601281,2.74199735,3114.5,3114.1,10.896005]
[1642512601485,2.74199735,3114.5,3113.8,6.5341]
[1642512601486,20.56429203,3114.4,3113.8,6.5341]
[1642512601682,0.01201968,3114.2,3113.8,6.5341]
[1642512601883,0.23269548,3114.1,3112.8,8.75]
[1642512602082,0.23269548,3114.1,3112.2,2.4784]
[1642512602083,0.80327,3113.4,3112.2,2.4784]
[1642512602315,3.9644307,3113.3,3112.1,0.38098571]
[1642512602516,0.50225824,3112.4,3112.1,0.38098571]
[1642512602719,18.57,3112.3,3112.2,1.2335613]
[1642512602920,0.9282,3113.4,3112.1,0.18098571]
[1642512602921,0.1285,3112.7,3112.1,0.18098571]
[1642512603119,0.50225824,3113.0,3112.1,0.18098571]
[1642512603322,0.50225824,3112.5,3112.1,3.38098571]
[1642512603518,0.50225824,3112.3,3112.1,3.38098571]
[1642512603919,0.50225824,3112.3,3112.2,1.36793416]
[1642512604517,0.13819997,3113.3,3112.3,5.55]
[1642512604717,1.60642,3113.6,3113.3,1.3984025]
[1642512605123,1.73472,3113.6,3113.3,1.3984025]
[1642512605323,0.83818774,3113.5,3112.3,5.55]
[1642512605621,1.67508977,3113.5,3112.3,5.55]
[1642512605826,2.73832299,3113.5,3112.3,5.55]
[1642512606261,2.73832299,3113.5,3112.3,5.6783]
[1642512606462,2.73832299,3113.5,3113.3,1.54523079]
[1642512607061,2.73832299,3113.5,3113.4,2.15170527]
[1642512607461,3.54140299,3113.6,3113.4,2.15170527]
[1642512607863,2.73832299,3113.6,3113.5,5.72943685]
[1642512609065,2.73832299,3113.6,3113.5,0.12943685]
[1642512609266,2.73832299,3113.6,3113.5,0.00113685]
[1642512609467,2.73832299,3113.6,3113.5,0.92626454]
[1642512609719,2.73832299,3113.6,3113.5,4.85139223]
[1642512609914,0.1283,3114.1,3113.5,4.85139223]
[1642512610316,0.00113685,3114.1,3113.7,5.6]
[1642512610516,1.38465137,3114.4,3113.8,1.20768735]
[1642512610716,1.38465137,3114.4,3113.8,1.33598735]
[1642512610917,1.38465137,3114.4,3113.8,2.12986269]
[1642512610918,2.73773993,3114.0,3113.8,2.12986269]
[1642512611119,0.00227369,3114.3,3113.8,1.32725269]
[1642512611416,2.76961104,3114.8,3114.0,5.6]
[1642512611616,3.53294364,3115.3,3114.3,1.38038734]
[1642512611817,9.81720141,3115.8,3114.4,5.984]
[1642512612017,7.896e-05,3115.2,3114.6,0.01260029]
[1642512612217,7.896e-05,3115.2,3114.7,1.3145677]
[1642512612421,2.108e-05,3115.7,3114.9,0.80227]
[1642512612617,9.76722249,3115.8,3115.7,7.71591133]
[1642512612817,9.76722249,3115.8,3115.7,9.55526177]
[1642512613017,0.95002108,3115.8,3115.7,9.55526177]
[1642512613218,0.95002108,3115.8,3115.7,0.384]
[1642512613460,0.95002108,3115.8,3115.1,1.242]
[1642512613461,0.95002108,3115.8,3115.1,4.93562294]
[1642512613664,0.95002108,3115.8,3115.1,1.242]
[1642512613860,0.95002108,3115.8,3115.2,0.00284212]
[1642512614061,2.14722213,3115.7,3115.2,2.16705339]
[1642512614261,2.14722213,3115.7,3115.2,0.00284212]
[1642512614461,2.14722213,3115.7,3115.1,1.242]
[1642512614462,0.06778639,3115.6,3115.3,0.0022737]
[1642512614660,2.27552213,3115.7,3115.2,0.00284212]
[1642512614661,0.1283,3115.5,3115.2,0.00284212]
[1642512614869,13.412782,3115.5,3115.4,1.85025538]
[1642512615066,2.27552213,3115.7,3115.4,1.85025538]
[1642512615267,2.27552213,3115.7,3115.4,1.85196065]
[1642512615268,17.870199,3115.6,3115.4,1.85196065]
[1642512615466,0.95002108,3115.8,3115.5,4.10113685]
[1642512615669,0.95002108,3115.8,3115.6,1.29851989]
[1642512616471,0.95002108,3115.8,3115.6,1.24851989]
[1642512617714,0.1283,3116.7,3115.6,1.24851989]
[1642512617914,0.1283,3116.8,3115.9,2.11870218]
[1642512618118,0.00511581,3116.6,3115.9,2.11870218]
[1642512618617,0.00454739,3116.5,3116.0,0.384]
[1642512619019,0.00397896,3116.4,3116.1,1.6039]
[1642512619224,0.00397896,3116.4,3116.2,0.384]
[1642512619423,0.00341054,3116.3,3115.9,2.11870218]
[1642512619620,0.00341054,3116.3,3116.0,0.384]
[1642512619821,0.00284212,3116.2,3116.1,1.38142183]
[1642512620022,0.00284212,3116.2,3116.1,1.76542183]
[1642512620221,0.00284212,3116.2,3116.1,4.96484952]
[1642512620420,4.212e-05,3116.2,3116.1,9.18342769]
[1642512620620,4.212e-05,3116.2,3116.1,10.78736769]
[1642512620824,0.93033,3117.3,3116.2,5.6]
[1642512620825,0.1283,3117.3,3116.2,5.6]
[1642512621072,2.07982131,3117.4,3116.4,0.0308286]
[1642512621272,0.00568423,3117.2,3116.5,0.384]
[1642512621476,2.07982131,3117.4,3117.0,1.52410906]
[1642512621477,2.27297874,3117.1,3117.0,1.52410906]
[1642512621676,0.00511581,3117.1,3117.0,1.52410906]
[1642512622472,0.00511581,3117.1,3117.0,7.12410906]
[1642512622673,0.00511581,3117.1,3117.0,12.01310025]
[1642512622874,0.00511581,3117.1,3117.0,10.70810906]
[1642512623475,0.00511581,3117.1,3117.0,11.50987906]
[1642512623877,1.581e-05,3117.1,3117.0,11.52214847]
[1642512624376,0.1283,3118.5,3117.2,0.03869308]
[1642512624737,4.211e-05,3117.6,3117.3,1.18569]
[1642512624941,1.37502008,3119.0,3117.3,1.31555316]
[1642512624942,0.0045895,3118.4,3117.3,1.31555316]
[1642512625140,0.00515793,3118.5,3117.9,0.92512769]
[1642512625340,0.1282,3118.8,3117.9,0.92512769]
[1642512625341,0.00402108,3118.3,3117.9,0.92512769]
[1642512625540,0.0045895,3118.4,3117.9,0.92512769]
[1642512625740,0.00345266,3118.2,3117.9,0.92512769]
[1642512625940,0.1282,3118.8,3117.9,0.92512769]
[1642512625941,0.00402108,3118.3,3117.9,0.92512769]
[1642512626141,0.00288423,3118.1,3118.0,1.41949302]
[1642512626442,0.00288423,3118.1,3117.9,0.92512769]
[1642512626839,0.00231581,3118.0,3117.9,0.92512769]
[1642512627241,0.00231581,3118.0,3117.9,0.87512769]
[1642512627441,0.00231581,3118.0,3117.9,4.42512769]
[1642512627640,0.00231581,3118.0,3117.9,5.61931633]
[1642512628141,0.1282,3118.8,3118.0,5.6]
[1642512628341,0.1282,3119.0,3118.0,5.6]
[1642512628566,0.1282,3119.0,3118.1,0.384]
[1642512628567,2.08380027,3118.7,3118.1,0.384]
[1642512628969,0.00341054,3118.6,3118.2,1.60275]
[1642512629174,0.75333185,3118.7,3118.4,5.6]
[1642512629371,3.185e-05,3118.7,3118.5,1.18541]
[1642512629769,3.4619325,3119.4,3118.6,5.6]
[1642512629972,3.4889844,3120.0,3118.7,5.984]
[1642512630175,3.4889844,3120.0,3119.3,0.01200284]
[1642512630372,3.4889844,3120.0,3119.8,1.25101818]
[1642512630570,3.4889844,3120.0,3119.9,6.52512769]
[1642512630770,8.44e-05,3120.0,3119.9,6.52512769]
[1642512630969,8.44e-05,3120.0,3119.9,1.30912769]
[1642512630970,12.47953733,3120.0,3119.9,1.30912769]
[1642512631170,12.47945293,3120.0,3119.9,0.92512769]
[1642512631371,9.26976193,3120.0,3119.9,3.72512769]
[1642512631575,5.96414993,3120.0,3119.9,3.72512769]
[1642512631774,2.07860056,3120.3,3120.0,1.46107329]
[1642512632072,0.00227369,3120.4,3120.0,1.46107329]
[1642512632317,7.672755,3120.2,3120.1,10.1532]
[1642512632518,4.21901227,3120.3,3120.0,1.2265]
[1642512632717,0.128,3121.1,3120.1,7.9663]
[1642512632718,0.00113684,3120.2,3120.1,7.9663]
[1642512633119,0.00568423,3120.2,3120.1,7.9663]
[1642512633318,0.00568423,3120.2,3120.1,7.485029]
[1642512633525,0.00568423,3120.2,3120.1,4.835029]
[1642512633924,0.00568423,3120.2,3120.0,5.61966985]
[1642512634224,0.00568423,3120.2,3120.0,4.4265]
[1642512634624,0.13388423,3120.2,3120.0,3.2]
[1642512634824,0.20319723,3120.2,3120.0,3.2]
[1642512635024,0.13388423,3120.2,3120.0,0.0001]
[1642512635425,1.65091819,3120.1,3120.0,0.0001]
[1642512635626,1.77911819,3120.1,3120.0,0.0001]
[1642512635826,0.1282,3120.1,3120.0,0.87522769]
[1642512636096,0.1282,3120.1,3120.0,0.24405538]
[1642512636294,0.1282,3120.1,3120.0,0.24653172]
[1642512636694,0.1282,3120.1,3119.0,11.13108606]
[1642512636695,1.33287513,3119.8,3119.0,11.13108606]
[1642512636894,1.33287513,3119.8,3119.4,1.18248372]
[1642512637098,1.33287513,3119.8,3119.5,0.1282]
[1642512637296,1.33287513,3119.8,3119.5,0.00284212]
[1642512637495,0.0596753,3119.7,3119.6,3.0522737]
[1642512637695,1.33287513,3119.8,3119.6,3.05]
[1642512637897,1.33287513,3119.8,3119.6,3.0522737]
[1642512638096,1.33287513,3119.8,3118.9,10.3358]
[1642512638097,2.09537887,3119.7,3118.9,10.3358]
[1642512638301,6.02547649,3119.7,3118.9,10.3358]
[1642512638496,0.05169485,3119.6,3119.0,0.00568424]
[1642512638695,2.09537887,3119.7,3119.0,0.00568424]
[1642512639095,4.50030787,3119.7,3119.0,0.00568424]
[1642512639298,4.53802482,3119.7,3119.0,0.00568424]
[1642512639497,2.5676167,3119.7,3119.0,0.00568424]
[1642512639733,0.1282,3119.7,3119.1,0.1282]
[1642512639924,1.39902824,3119.4,3119.1,0.1282]
[1642512640123,1.39902824,3119.4,3119.2,0.00454739]
[1642512640525,2.11565833,3119.3,3119.2,0.00454739]
[1642512640726,1.39902824,3119.4,3119.2,0.00454739]
[1642512641127,1.39902824,3119.7,3119.2,0.00454739]
[1642512641327,1.39902824,3119.7,3119.3,0.00241751]
[1642512641727,2.13234606,3119.4,3119.3,0.00241751]
[1642512642126,2.13234606,3119.4,3119.3,2.60639648]
[1642512642728,2.73190337,3119.8,3119.3,5.80639648]
[1642512643126,2.73190337,3119.8,3119.4,0.00341054]
[1642512643570,1.39902824,3119.6,3119.4,0.00341054]
[1642512644373,1.39902824,3119.7,3119.4,0.00341054]
[1642512644977,1.39902824,3119.7,3119.6,6.39175138]
[1642512645373,1.39902824,3119.7,3119.6,14.06678008]
[1642512645576,1.39902824,3119.7,3119.6,7.6750287]
[1642512646375,2.73190337,3119.8,3119.6,7.67730697]
[1642512646573,1.81466372,3119.7,3119.6,7.67730697]
[1642512646774,1.81466372,3119.7,3119.6,0.00227827]
[1642512647240,1.81466372,3119.7,3119.6,12.22503327]
[1642512647434,2.73383772,3119.7,3119.6,12.22503327]
[1642512648637,4.5879404,3119.7,3119.6,12.22503327]
[1642512648936,4.5879404,3119.7,3119.6,7.672755]
[1642512650038,2.73383772,3119.7,3119.6,7.672755]
[1642512650639,2.73383772,3119.7,3119.5,0.00653918]
[1642512651375,2.73383772,3119.7,3119.6,0.00240484]
[1642512651772,2.68383772,3119.7,3119.6,0.00240484]
[1642512652275,3.52044568,3119.8,3119.6,0.00240484]
[1642512652670,3.52044568,3119.8,3119.7,0.00170527]
[1642512652873,3.52044568,3119.8,3119.7,7.67446027]
[1642512653069,3.47044568,3119.8,3119.7,7.67446027]
[1642512653878,1.28287513,3119.8,3119.7,7.67446027]
[1642512654377,1.28287513,3119.8,3119.7,0.00170527]
[1642512654823,1.41107513,3119.8,3119.3,3.2]
[1642512655021,0.04394435,3119.7,3119.3,3.2]
[1642512655222,1.60325,3119.7,3119.4,0.00170527]
[1642512655427,0.83794279,3119.6,3119.3,2.89740527]
[1642512655623,4.8,3119.4,3118.1,0.1282]
[1642512655824,2.43982211,3119.2,3118.0,2.4211]
[1642512656022,2.43982211,3119.2,3118.2,0.00682108]
[1642512656023,0.1282,3119.1,3118.2,0.00682108]
[1642512656223,0.80176,3118.9,3118.2,0.00682108]
[1642512656426,1.88776,3118.9,3118.2,0.00682108]
[1642512656630,18.57,3118.6,3117.6,0.1282]
[1642512656824,18.77956638,3118.5,3117.9,0.00170528]
[1642512657023,3.72253727,3118.5,3117.9,0.00170528]
[1642512657223,3.72253727,3118.5,3117.6,1.69518009]
[1642512657224,0.00113684,3118.4,3117.6,1.69518009]
[1642512657424,0.80316684,3118.4,3117.6,0.00341055]
[1642512657626,0.8020222,3118.3,3117.7,0.00284212]
[1642512657825,0.8020222,3118.3,3117.4,0.00454739]
[1642512657826,0.83948938,3118.3,3117.4,0.00454739]
[1642512658028,0.83948938,3118.3,3117.9,1.47246281]
[1642512658029,0.8020222,3118.3,3117.9,1.47246281]
[1642512658225,0.8020222,3118.3,3117.5,0.1282]
[1642512658483,2.40721124,3118.4,3117.5,0.1282]
[1642512658484,0.00113684,3118.4,3118.0,0.00113685]
[1642512658679,0.00113684,3118.4,3117.7,5.53744672]
[1642512658872,0.00113684,3118.4,3117.7,5.52232738]
[1642512659075,0.00113684,3118.4,3117.8,0.0022737]
[1642512659276,0.00113684,3118.4,3117.9,0.1282]
[1642512659477,0.00113684,3118.4,3118.2,2.0571248]
[1642512660176,0.00113684,3118.4,3118.1,0.1282]
[1642512660579,0.00113684,3118.4,3118.1,3.92865456]
[1642512660781,0.00113684,3118.4,3118.2,10.0423]
[1642512661487,0.00113684,3118.4,3118.3,7.66351771]
[1642512661678,0.00113684,3118.4,3118.3,5.73535321]
[1642512662322,0.00113684,3118.4,3118.3,0.00715321]
[1642512662323,0.12933684,3118.4,3118.3,0.00715321]
[1642512662521,0.12933684,3118.4,3118.0,0.00113685]
[1642512662522,2.22933684,3118.4,3118.0,0.00113685]
[1642512662724,1.6472133,3118.3,3118.0,0.00113685]
[1642512662924,0.8020021,3118.1,3117.3,0.00511582]
[1642512663126,0.83522028,3118.1,3117.3,0.00511582]
[1642512663326,0.1282,3118.2,3117.3,0.00511582]
[1642512663327,0.802,3117.9,3117.3,0.00511582]
[1642512663526,0.04171745,3117.7,3117.3,0.00511582]
[1642512663731,0.1283,3117.6,3117.3,0.00511582]
[1642512663925,1.98507537,3117.3,3116.9,0.20511241]
[1642512664126,18.6983,3117.2,3117.0,0.00170527]